bitfinex-derivatives/quotes_BTCF0:USTF0_20250121
["timestamp","ask_amount","ask_price","bid_price","bid_amount"]
[1737439784836,0.123743,101820.0,101810.0,0.13756717]
[1737439785432,0.039343,101820.0,101810.0,0.13756717]
[1737439785637,0.04081057,101830.0,101820.0,0.039341]
[1737439786341,0.04081057,101830.0,101820.0,0.7075487]
[1737439786739,0.039337,101830.0,101820.0,0.0982077]
[1737439788338,0.4453,101840.0,101820.0,0.19948864]
[1737439788529,0.68767736,101850.0,101830.0,0.07261793]
[1737439788729,0.68767736,101850.0,101830.0,0.3608]
[1737439788936,0.68767736,101850.0,101830.0,0.400134]
[1737439789144,0.68767736,101850.0,101830.0,0.4983417]
[1737439791236,0.68767736,101850.0,101830.0,0.52611577]
[1737439791644,0.60050883,101850.0,101830.0,0.52611577]
[1737439793238,0.60050883,101850.0,101830.0,1.09611577]
[1737439793439,0.60050883,101850.0,101830.0,1.02811576]
[1737439793638,0.60050883,101850.0,101830.0,1.06745076]
[1737439794038,0.60050883,101850.0,101830.0,1.13488021]
[1737439796242,0.48343,101850.0,101830.0,1.13488021]
[1737439796746,0.48343,101850.0,101830.0,1.06745076]
[1737439797954,0.40013,101850.0,101830.0,1.13488021]
[1737439798444,0.40013,101850.0,101830.0,1.0668802]
[1737439799642,0.40013,101850.0,101830.0,0.99945075]
[1737439800339,0.03933,101850.0,101840.0,0.039333]
[1737439800941,0.03933,101850.0,101840.0,0.09819324]
[1737439801650,0.40013,101850.0,101810.0,0.3608]
[1737439801945,0.039341,101820.0,101810.0,0.49833242]
[1737439802246,0.50962945,101840.0,101810.0,1.06833242]
[1737439802444,0.0861,101820.0,101810.0,1.13576187]
[1737439802846,0.0861,101820.0,101810.0,1.16387051]
[1737439803341,0.0861,101820.0,101810.0,1.09644106]
[1737439803541,0.125441,101820.0,101810.0,1.09644106]
[1737439803744,0.125441,101820.0,101810.0,0.73564106]
[1737439803943,0.0861,101820.0,101810.0,1.16387051]
[1737439804149,0.0817,101830.0,101820.0,0.039341]
[1737439804545,0.0817,101830.0,101820.0,0.400141]
[1737439804847,0.206834,101840.0,101830.0,0.039337]
[1737439805040,0.206834,101840.0,101830.0,0.400137]
[1737439805440,0.206834,101840.0,101830.0,1.06833506]
[1737439806147,0.206834,101840.0,101830.0,1.02899806]
[1737439806340,0.27426345,101840.0,101830.0,0.66819806]
[1737439806940,0.27426345,101840.0,101830.0,1.02899806]
[1737439807148,0.27426345,101840.0,101830.0,0.66819806]
[1737439808146,0.206834,101840.0,101830.0,0.66819806]
[1737439808455,0.206834,101840.0,101830.0,0.09819806]
[1737439808644,0.125434,101840.0,101830.0,0.56576451]
[1737439809040,0.125434,101840.0,101830.0,0.49833506]
[1737439809447,0.125434,101840.0,101830.0,0.99833506]
[1737439810954,0.19286345,101840.0,101830.0,0.09819806]
[1737439811155,0.039337,101830.0,101820.0,0.400139]
[1737439811348,0.15352945,101840.0,101820.0,0.900139]
[1737439811548,0.125434,101840.0,101830.0,0.45899806]
[1737439811751,0.125434,101840.0,101830.0,0.039337]
[1737439811953,0.125434,101840.0,101830.0,0.400137]
[1737439812148,0.19286345,101840.0,101830.0,0.45899806]
[1737439812348,0.19286345,101840.0,101830.0,0.09819806]
[1737439812848,0.55366345,101840.0,101830.0,0.09819806]
[1737439813054,0.19286345,101840.0,101830.0,0.09819806]
[1737439813453,0.55366345,101840.0,101830.0,0.03019805]
[1737439814357,0.039337,101830.0,101820.0,1.15697576]
[1737439814556,0.10676645,101830.0,101820.0,0.75683476]
[1737439814756,0.55886645,101830.0,101820.0,0.85503282]
[1737439815057,0.19806645,101830.0,101820.0,0.85503282]
[1737439815260,0.55886645,101830.0,101820.0,0.85503282]
[1737439815755,0.55886645,101830.0,101820.0,0.2349032]
[1737439815950,0.55886645,101830.0,101810.0,0.29436995]
[1737439816150,0.55567045,101820.0,101810.0,0.29436995]
[1737439816347,0.55567045,101820.0,101810.0,0.79436995]
[1737439816753,0.55567045,101820.0,101810.0,0.29436995]
[1737439817758,0.19487045,101820.0,101810.0,0.29436995]
[1737439818257,0.55567045,101820.0,101810.0,0.29436995]
[1737439818458,0.55567045,101820.0,101810.0,0.22636994]
[1737439819552,0.039345,101810.0,101800.0,0.56114059]
[1737439819962,0.039345,101810.0,101800.0,0.65935794]
[1737439820663,0.10677445,101810.0,101800.0,0.52179159]
[1737439820966,0.19817445,101810.0,101800.0,0.52179159]
[1737439821966,0.2633443,101820.0,101800.0,0.72679704]
[1737439822264,0.3026863,101820.0,101800.0,0.77746759]
[1737439822456,0.039345,101810.0,101800.0,0.77746759]
[1737439822651,0.2633443,101820.0,101800.0,0.73811859]
[1737439822858,0.2633443,101820.0,101810.0,0.96757445]
[1737439822859,0.1752443,101820.0,101810.0,0.96757445]
[1737439823058,0.1752443,101820.0,101810.0,1.00200428]
[1737439823556,0.1752443,101820.0,101810.0,1.10022163]
[1737439823958,0.1752443,101820.0,101810.0,1.0657918]
[1737439824158,0.039334,101840.0,101830.0,0.039337]
[1737439824360,0.5303,101850.0,101830.0,0.400137]
[1737439824361,0.569631,101850.0,101830.0,0.400137]
[1737439824661,0.208831,101850.0,101830.0,0.400137]
[1737439824859,0.208831,101850.0,101830.0,0.6553838]
[1737439825060,0.208831,101850.0,101840.0,0.3608]
[1737439825567,0.35543541,101850.0,101840.0,0.3608]
[1737439825866,0.35543541,101850.0,101840.0,0.45899324]
[1737439826860,0.27123541,101850.0,101840.0,0.45899324]
[1737439827175,0.27123541,101850.0,101840.0,0.49832624]
[1737439828267,0.27123541,101850.0,101840.0,0.99832624]
[1737439828471,0.27123541,101850.0,101840.0,0.93032623]
[1737439829471,0.24189616,101850.0,101840.0,0.43032623]
[1737439830170,0.24189616,101850.0,101840.0,0.45189127]
[1737439832564,0.039333,101840.0,101830.0,0.3608]
[1737439832869,0.46756245,101840.0,101830.0,0.09818842]
[1737439833070,0.55466245,101840.0,101830.0,0.09818842]
[1737439833371,0.55466245,101840.0,101830.0,0.03018841]
[1737439833576,0.51532945,101840.0,101820.0,0.0212701]
[1737439833771,0.10676645,101830.0,101810.0,1.33528961]
[1737439834068,0.19166645,101830.0,101820.0,0.09819806]
[1737439834265,0.19166645,101830.0,101810.0,1.25188961]
[1737439834459,0.19166645,101830.0,101820.0,0.09821253]
[1737439834773,0.039341,101820.0,101810.0,0.35174561]
[1737439834969,0.19127045,101820.0,101810.0,0.35174561]
[1737439835168,0.55207045,101820.0,101810.0,0.35174561]
[1737439835758,0.6194999,101820.0,101810.0,0.35174561]
[1737439835958,0.039345,101810.0,101800.0,0.46830431]
[1737439836162,0.55407445,101810.0,101800.0,0.46830431]
[1737439837975,0.039352,101790.0,101780.0,1.01129812]
[1737439838159,0.10678145,101790.0,101770.0,0.0876]
[1737439838458,0.10678145,101790.0,101770.0,0.11784629]
[1737439838459,0.039356,101780.0,101770.0,0.11784629]
[1737439838971,0.039356,101780.0,101770.0,0.15720629]
[1737439839174,0.039356,101780.0,101770.0,0.15904549]
[1737439839764,0.039356,101780.0,101770.0,0.11968549]
[1737439839971,0.19078545,101780.0,101770.0,0.11968549]
[1737439840273,0.19078545,101780.0,101770.0,0.02143919]
[1737439840462,0.55158545,101780.0,101760.0,0.5]
[1737439840772,0.10678945,101770.0,101760.0,0.59825595]
[1737439841162,0.039364,101760.0,101750.0,7.071e-05]
[1737439841362,0.46759345,101760.0,101750.0,7.071e-05]
[1737439841563,0.55869345,101760.0,101750.0,0.09833632]
[1737439841767,0.55869345,101760.0,101750.0,7.071e-05]
[1737439841971,0.491264,101760.0,101750.0,7.071e-05]
[1737439843567,0.02936631,101780.0,101750.0,0.42830016]
[1737439843769,0.06872331,101780.0,101760.0,0.55589145]
[1737439844079,0.02936631,101780.0,101770.0,0.51412945]
[1737439844377,0.00786,101780.0,101770.0,0.64088945]
[1737439844577,0.11694204,101790.0,101780.0,0.039356]
[1737439844873,0.11694204,101790.0,101780.0,0.46758545]
[1737439845076,0.03547587,101790.0,101780.0,0.46758545]
[1737439845376,0.12681495,101820.0,101780.0,1.09391968]
[1737439845562,0.04081495,101820.0,101800.0,0.46757545]
[1737439845876,0.04081495,101820.0,101800.0,0.400146]
[1737439846061,0.04081495,101820.0,101810.0,0.0838]
[1737439846470,0.50280412,101820.0,101790.0,0.0883]
[1737439846673,0.03935,101800.0,101780.0,0.983955]
[1737439847067,0.03935,101800.0,101780.0,1.08217717]
[1737439847870,0.03935,101800.0,101790.0,0.3608]
[1737439848075,0.03935,101800.0,101780.0,1.08217717]
[1737439848376,0.03935,101800.0,101780.0,0.983955]
[1737439848675,0.03935,101800.0,101780.0,1.08219165]
[1737439848876,0.03935,101800.0,101790.0,0.3608]
[1737439849171,0.307046,101810.0,101790.0,0.400152]
[1737439849373,0.128346,101810.0,101790.0,0.400152]
[1737439849670,0.039349,101800.0,101790.0,0.09823665]
[1737439850179,0.039346,101810.0,101790.0,0.49838765]
[1737439850770,0.039346,101810.0,101790.0,0.99838765]
[1737439851473,0.039346,101810.0,101790.0,0.63758765]
[1737439852078,0.039346,101810.0,101790.0,0.99838765]
[1737439852982,0.039346,101810.0,101790.0,0.63758765]
[1737439853672,0.039346,101810.0,101790.0,0.56958764]
[1737439853870,0.039349,101800.0,101790.0,0.03023664]
[1737439854476,0.14053817,101800.0,101790.0,0.03023664]
[1737439854870,0.50133817,101800.0,101790.0,0.03023664]
[1737439855279,0.46983917,101800.0,101770.0,0.3608]
[1737439855481,0.039356,101780.0,101770.0,0.3608]
[1737439855669,0.039356,101780.0,101770.0,0.49839665]
[1737439855872,0.2653,101790.0,101770.0,0.99839665]
[1737439856072,0.310713,101790.0,101770.0,0.99839665]
[1737439856272,0.310713,101790.0,101770.0,1.01954166]
[1737439856574,0.039356,101780.0,101770.0,1.01954166]
[1737439857281,0.045414,101790.0,101770.0,0.98018166]
[1737439857471,0.00606,101790.0,101780.0,0.400156]
[1737439857672,0.00606,101790.0,101780.0,0.489956]
[1737439857872,0.406212,101790.0,101780.0,0.1814]
[1737439858173,0.406212,101790.0,101780.0,0.27965595]
[1737439858376,0.406212,101790.0,101780.0,0.21165594]
[1737439858579,0.045412,101790.0,101780.0,0.61181194]
[1737439858781,0.045412,101790.0,101780.0,0.70321194]
[1737439859173,0.00606,101790.0,101780.0,0.70321194]
[1737439859374,0.00606,101790.0,101780.0,0.80440111]
[1737439861385,0.00785,101800.0,101790.0,0.039352]
[1737439861585,0.00785,101800.0,101790.0,0.50134117]
[1737439861779,0.17496703,101820.0,101810.0,0.039344]
[1737439861981,0.17496703,101820.0,101810.0,0.50133317]
[1737439862185,0.1729378,101820.0,101810.0,0.86213317]
[1737439862483,0.86395084,101850.0,101830.0,0.039335]
[1737439862785,0.86395084,101850.0,101830.0,0.400136]
[1737439863179,0.86395084,101850.0,101830.0,0.49835335]
[1737439863378,0.86395084,101850.0,101830.0,0.13755335]
[1737439863879,0.29890348,101850.0,101830.0,0.13755335]
[1737439864380,0.29890348,101850.0,101830.0,0.49835335]
[1737439864880,0.30256348,101850.0,101830.0,0.49835335]
[1737439865087,0.13346348,101850.0,101830.0,0.49835335]
[1737439865481,0.00513348,101850.0,101840.0,0.400133]
[1737439865881,0.00366,101850.0,101840.0,0.039333]
[1737439866187,0.00366,101850.0,101840.0,0.13752624]
[1737439866576,0.00366,101850.0,101840.0,0.49832624]
[1737439866987,0.00366,101850.0,101840.0,0.13752624]
[1737439867188,0.00366,101850.0,101840.0,0.49832624]
[1737439867488,0.042989,101850.0,101840.0,0.49832624]
[1737439868787,0.042989,101850.0,101840.0,0.45899324]
[1737439868990,0.14417817,101850.0,101840.0,0.09819324]
[1737439869492,0.042989,101850.0,101840.0,0.09819324]
[1737439869993,0.00366,101850.0,101840.0,0.45899324]
[1737439870184,0.38405006,101880.0,101840.0,1.17719206]
[1737439870185,0.00147303,101880.0,101840.0,1.17719206]
[1737439870488,0.00147303,101880.0,101870.0,0.039321]
[1737439870697,0.10822294,101880.0,101860.0,0.400123]
[1737439870895,0.10822294,101880.0,101860.0,0.039323]
[1737439871084,0.04079003,101880.0,101860.0,0.49831142]
[1737439871484,0.10822294,101880.0,101860.0,0.49831142]
[1737439871686,0.04079003,101880.0,101860.0,0.49831142]
[1737439871996,0.06532003,101880.0,101860.0,0.49831142]
[1737439872192,0.039321,101870.0,101860.0,0.09818842]
[1737439872384,0.14041314,101870.0,101860.0,0.09818842]
[1737439872585,0.50121314,101870.0,101860.0,0.09818842]
[1737439873487,0.46189214,101870.0,101840.0,0.039333]
[1737439873791,0.22311814,101860.0,101840.0,0.09816914]
[1737439873983,0.30981814,101860.0,101840.0,0.13750014]
[1737439874187,0.67061814,101860.0,101840.0,0.49830014]
[1737439874386,0.569526,101860.0,101840.0,0.49830014]
[1737439874588,0.67061814,101860.0,101840.0,0.49830014]
[1737439874786,0.00011528,101850.0,101840.0,0.49830014]
[1737439875690,0.00011528,101850.0,101840.0,0.59939228]
[1737439876001,0.00011528,101850.0,101840.0,0.68809228]
[1737439877897,0.00011528,101850.0,101840.0,0.78918442]
[1737439878097,0.67502103,101880.0,101860.0,0.039325]
[1737439878297,0.67502103,101880.0,101860.0,0.900125]
[1737439878498,0.67502103,101880.0,101860.0,0.83212499]
[1737439878691,0.67502103,101880.0,101860.0,0.93028931]
[1737439878891,0.67502103,101880.0,101860.0,0.96961331]
[1737439879092,0.039321,101870.0,101860.0,0.63748832]
[1737439879493,0.039321,101870.0,101860.0,0.59938046]
[1737439879694,0.039321,101870.0,101860.0,0.49828832]
[1737439880001,0.039321,101870.0,101860.0,0.99828832]
[1737439881504,0.400121,101870.0,101860.0,0.09816432]
[1737439882805,0.039327,101860.0,101840.0,0.9495]
[1737439883098,0.039327,101860.0,101850.0,0.13749814]
[1737439883293,0.039327,101860.0,101850.0,0.09816914]
[1737439883493,0.039329,101850.0,101840.0,0.039333]
[1737439883698,0.291329,101850.0,101840.0,0.05681408]
[1737439883899,0.291329,101850.0,101840.0,0.15499286]
[1737439884410,0.291329,101850.0,101840.0,0.52817878]
[1737439885006,0.039333,101840.0,101830.0,0.17555762]
[1737439885193,0.50122514,101840.0,101830.0,0.17555762]
[1737439885700,0.039337,101830.0,101820.0,0.52653228]
[1737439885902,0.50122914,101830.0,101820.0,0.52653228]
[1737439886203,0.400137,101830.0,101820.0,0.52653228]
[1737439887597,0.400137,101830.0,101820.0,7.723e-05]
[1737439888498,0.3608,101830.0,101800.0,0.17556809]
[1737439888703,0.039342,101820.0,101800.0,0.33371981]
[1737439888898,0.039342,101820.0,101810.0,0.039345]
[1737439889495,0.03941923,101820.0,101810.0,0.13756235]
[1737439889695,0.03941923,101820.0,101810.0,0.09821735]
[1737439889992,0.50131137,101820.0,101800.0,0.19328067]
[1737439890196,0.039345,101810.0,101800.0,0.61328067]
[1737439890396,0.039345,101810.0,101800.0,0.69378544]
[1737439890804,0.039345,101810.0,101800.0,0.51821735]
[1737439892701,0.25309644,101820.0,101800.0,0.98010949]
[1737439893012,0.12703744,101820.0,101810.0,0.400145]
[1737439893399,0.08769644,101820.0,101810.0,0.14043714]
[1737439893603,0.08769644,101820.0,101810.0,0.49836235]
[1737439894616,7.723e-05,101820.0,101810.0,0.49836235]
[1737439895912,7.723e-05,101820.0,101810.0,0.91836235]
[1737439896412,0.02462723,101820.0,101810.0,0.91836235]
[1737439897005,0.06396723,101820.0,101810.0,0.51821735]
[1737439898006,0.06396723,101820.0,101810.0,0.55756135]
[1737439898207,0.06396723,101820.0,101810.0,0.87901735]
[1737439898409,0.06396723,101820.0,101810.0,0.03021734]
[1737439898609,0.06396723,101820.0,101800.0,0.3608]
[1737439898610,0.039345,101810.0,101800.0,0.3608]
[1737439898807,0.06396823,101820.0,101810.0,0.09821735]
[1737439899010,0.06396823,101820.0,101810.0,0.13756135]
[1737439899214,0.06396823,101820.0,101810.0,0.039344]
[1737439899414,0.02462723,101820.0,101810.0,0.23865349]
[1737439899618,0.02462723,101820.0,101810.0,0.59945349]
[1737439902217,0.02462723,101820.0,101810.0,0.63387915]
[1737439903421,0.02462723,101820.0,101810.0,0.58287914]
[1737439903723,0.02462723,101820.0,101810.0,0.62222314]
[1737439904220,0.02462723,101820.0,101810.0,0.58779748]
[1737439904419,0.02462723,101820.0,101810.0,1.04222066]
[1737439905420,0.02462723,101820.0,101810.0,1.05961891]
[1737439905722,0.02462723,101820.0,101810.0,1.02595813]
[1737439905923,0.02378323,101820.0,101810.0,1.02595813]
[1737439906524,0.02378323,101820.0,101810.0,0.99153495]
[1737439907418,0.20494623,101840.0,101830.0,0.039336]
[1737439908219,0.20494623,101840.0,101830.0,0.13755335]
[1737439908414,0.20494623,101840.0,101830.0,0.06955334]
[1737439908620,0.31170959,101840.0,101830.0,0.10888934]
[1737439909022,0.24427823,101840.0,101830.0,0.10888934]
[1737439909427,0.55537361,101840.0,101830.0,0.06955334]
[1737439909621,0.039339,101830.0,101810.0,0.65150868]
[1737439909822,0.18877036,101830.0,101810.0,0.65150868]
[1737439910025,0.207439,101830.0,101810.0,1.07150868]
[1737439910330,0.568239,101830.0,101810.0,1.2371381]
[1737439910728,0.568239,101830.0,101810.0,1.16970674]
[1737439911030,0.10677136,101820.0,101810.0,0.71036374]
[1737439911227,0.10677136,101820.0,101810.0,0.34956374]
[1737439911619,0.46757136,101820.0,101810.0,0.34956374]
[1737439911818,0.40014,101820.0,101810.0,0.33216549]
[1737439912029,0.46757136,101820.0,101810.0,0.33216549]
[1737439912324,0.039344,101810.0,101800.0,0.29248762]
[1737439912627,0.46757536,101810.0,101800.0,0.29248762]
[1737439912825,0.55077536,101810.0,101800.0,0.29248762]
[1737439913015,0.55077536,101810.0,101800.0,0.23506689]
[1737439913215,0.483344,101810.0,101800.0,0.33328424]
[1737439913422,0.483344,101810.0,101800.0,0.26528423]
[1737439913827,0.444,101810.0,101800.0,0.30463223]
[1737439914025,0.3608,101810.0,101800.0,0.30463223]
[1737439914323,0.400144,101810.0,101800.0,0.30463223]
[1737439915725,0.46757536,101810.0,101800.0,0.26528423]
[1737439916731,0.400144,101810.0,101800.0,0.26528423]
[1737439916931,0.039344,101810.0,101800.0,0.30463223]
[1737439917132,0.039344,101810.0,101800.0,0.26528423]
[1737439917332,0.36067707,101810.0,101800.0,0.09821735]
[1737439918338,0.42810843,101810.0,101800.0,0.51821735]
[1737439918536,0.42810843,101810.0,101800.0,0.45021734]
[1737439919728,0.36067707,101810.0,101800.0,0.45021734]
[1737439920547,0.18543865,101810.0,101800.0,0.45021734]
[1737439920733,0.25287001,101810.0,101800.0,0.45021734]
[1737439921646,0.61367001,101810.0,101800.0,0.45021734]
[1737439922132,0.039348,101800.0,101790.0,8.454e-05]
[1737439922334,0.63997936,101800.0,101790.0,8.454e-05]
[1737439923442,0.64005856,101800.0,101770.0,0.64457215]
[1737439923645,0.039356,101780.0,101770.0,0.64457215]
[1737439923945,0.039356,101780.0,101770.0,0.459359]
[1737439924242,0.039356,101780.0,101770.0,0.57512334]
[1737439925140,0.047216,101780.0,101770.0,0.57512334]
[1737439925741,0.408016,101780.0,101770.0,0.57512334]
[1737439925933,0.408016,101780.0,101770.0,0.53576434]
[1737439927441,0.61291972,101780.0,101770.0,0.53576434]
[1737439928541,0.61291972,101780.0,101770.0,0.11576434]
[1737439928728,0.21276372,101780.0,101770.0,0.1831957]
[1737439928929,0.21276372,101780.0,101770.0,0.61779613]
[1737439929427,0.22300372,101780.0,101770.0,0.9333557]
[1737439929927,0.22300372,101780.0,101770.0,0.50020516]
[1737439929928,0.26235972,101780.0,101770.0,0.50020516]
[1737439930128,0.26235972,101780.0,101770.0,0.50512434]
[1737439930836,0.26235972,101780.0,101770.0,0.86592434]
[1737439931741,0.057456,101780.0,101770.0,0.86592434]
[1737439933038,0.057456,101780.0,101770.0,0.82656434]
[1737439933642,0.057456,101780.0,101770.0,0.75856433]
[1737439934236,0.057456,101780.0,101770.0,0.79792233]
[1737439934542,0.0181,101780.0,101770.0,0.89979457]
[1737439935641,0.057457,101780.0,101770.0,0.39776433]
[1737439936139,0.057457,101780.0,101770.0,0.75856433]
[1737439936341,0.057457,101780.0,101770.0,0.39776433]
[1737439936547,0.057457,101780.0,101770.0,0.44300586]
[1737439936746,0.057457,101780.0,101770.0,0.48236586]
[1737439937039,0.0181,101780.0,101770.0,0.83236586]
[1737439937239,0.0181,101780.0,101770.0,0.86535569]
[1737439937434,0.00821731,101780.0,101770.0,0.86535569]
[1737439937640,0.17695923,101790.0,101780.0,0.039356]
[1737439937936,0.17695923,101790.0,101780.0,0.63278736]
[1737439938142,0.14643901,101800.0,101790.0,0.039352]
[1737439938348,0.17523842,101810.0,101790.0,0.5694506]
[1737439938540,0.0824,101820.0,101800.0,0.42823136]
[1737439938739,0.0824,101820.0,101810.0,0.039344]
[1737439938942,0.32758536,101830.0,101810.0,0.42823136]
[1737439939234,0.32758536,101830.0,101820.0,0.03934]
[1737439939446,0.20424736,101830.0,101820.0,0.03934]
[1737439939751,0.20424736,101830.0,101820.0,0.46757136]
[1737439939944,0.20424736,101830.0,101820.0,0.56577906]
[1737439940248,0.20424736,101830.0,101820.0,0.20497906]
[1737439940548,0.20424736,101830.0,101820.0,0.56577906]
[1737439940949,0.20922736,101830.0,101820.0,0.56577906]
[1737439941550,0.20922736,101830.0,101820.0,0.82307906]
[1737439942351,0.00498,101830.0,101820.0,0.82307906]
[1737439942650,0.00498,101830.0,101820.0,1.17307906]
[1737439943239,0.17599602,101860.0,101850.0,0.039329]
[1737439943448,0.17599602,101860.0,101840.0,0.33212899]
[1737439943649,0.17599602,101860.0,101850.0,0.121229]
[1737439943840,0.24342738,101860.0,101840.0,0.43030777]
[1737439944039,0.10676036,101850.0,101840.0,0.09817878]
[1737439944347,0.039329,101850.0,101840.0,0.09817878]
[1737439947041,0.400129,101850.0,101840.0,0.09817878]
[1737439947851,0.039329,101850.0,101840.0,0.09817878]
[1737439948651,0.039329,101850.0,101840.0,0.03017877]
[1737439949249,0.039329,101850.0,101840.0,0.09139222]
[1737439949841,0.400125,101860.0,101840.0,0.09139222]
[1737439950047,0.3608,101860.0,101850.0,0.10676036]
[1737439950255,0.644122,101870.0,101850.0,0.039329]
[1737439950462,0.71155336,101870.0,101850.0,0.039329]
[1737439950646,0.71155336,101870.0,101850.0,0.13751742]
[1737439950846,0.71155336,101870.0,101850.0,0.48751742]
[1737439951349,0.46755636,101860.0,101850.0,0.44818842]
[1737439951549,0.039325,101860.0,101850.0,0.44818842]
[1737439951746,0.400125,101860.0,101850.0,0.09818842]
[1737439952356,0.46755636,101860.0,101850.0,0.09818842]
[1737439952655,0.039328,101850.0,101840.0,0.02188145]
[1737439952859,0.46755936,101850.0,101830.0,0.400135]
[1737439953048,0.1674,101840.0,101830.0,0.400135]
[1737439953249,0.1674,101840.0,101830.0,0.49831378]
[1737439954464,0.1674,101840.0,101830.0,0.52032728]
[1737439957351,0.1674,101840.0,101830.0,0.58775864]
[1737439957657,0.3608,101870.0,101830.0,0.58775864]
[1737439957856,0.74448727,101880.0,101860.0,0.46755536]
[1737439958166,0.38368827,101880.0,101860.0,0.400124]
[1737439958364,0.45111963,101880.0,101860.0,0.750124]
[1737439958662,0.45111963,101880.0,101870.0,0.039321]
[1737439959164,0.74448827,101880.0,101870.0,0.039321]
[1737439959349,0.74448827,101880.0,101870.0,0.13748532]
[1737439959760,0.81191963,101880.0,101870.0,0.09816432]
[1737439961056,0.039321,101870.0,101860.0,0.02204081]
[1737439961251,0.039321,101870.0,101860.0,0.039325]
[1737439961653,0.039321,101870.0,101860.0,0.1374845]
[1737439961849,0.400121,101870.0,101860.0,0.1374845]
[1737439962161,0.52917325,101880.0,101860.0,0.16559086]
[1737439962366,0.56849025,101880.0,101870.0,0.039321]
[1737439963055,0.56849025,101880.0,101870.0,0.1374805]
[1737439963259,0.56849025,101880.0,101870.0,0.0981595]
[1737439963457,0.56849025,101880.0,101870.0,0.03015949]
[1737439964368,0.56849025,101880.0,101870.0,0.06948049]
[1737439964763,0.16837325,101880.0,101870.0,0.13691185]
[1737439965070,0.567017,101880.0,101870.0,0.06948049]
[1737439965867,0.63444836,101880.0,101870.0,0.03015949]
[1737439968371,0.567017,101880.0,101870.0,0.03015949]
[1737439968669,0.63444836,101880.0,101870.0,0.0981595]
[1737439968872,0.567017,101880.0,101870.0,0.4481595]
[1737439969958,0.63444836,101880.0,101870.0,0.4481595]
[1737439970565,0.567017,101880.0,101870.0,0.4481595]
[1737439971774,0.1669,101880.0,101870.0,0.52188983]
[1737439971973,0.1669,101880.0,101870.0,0.67252119]
[1737439972273,0.1669,101880.0,101870.0,0.63811186]
[1737439972773,0.1669,101880.0,101870.0,0.5706805]
[1737439973263,0.31370691,101880.0,101870.0,0.5706805]
[1737439973473,0.31370691,101880.0,101870.0,0.50268049]
[1737439974064,0.35302391,101880.0,101870.0,0.50268049]
[1737439974266,0.71382391,101880.0,101870.0,0.50268049]
[1737439974879,0.18612391,101880.0,101870.0,0.50268049]
[1737439976577,0.54692391,101880.0,101870.0,0.46335949]
[1737439976778,0.61435527,101880.0,101870.0,0.38015949]
[1737439977074,0.039317,101880.0,101870.0,0.38015949]
[1737439977275,0.400117,101880.0,101870.0,0.38015949]
[1737439978478,0.039317,101880.0,101860.0,0.3634579]
[1737439978681,0.039317,101880.0,101870.0,0.039321]
[1737439979367,0.039317,101880.0,101870.0,0.1374805]
[1737439979572,0.18612391,101880.0,101870.0,0.4474805]
[1737439980482,0.54692391,101880.0,101870.0,0.4081595]
[1737439980677,0.61435527,101880.0,101870.0,0.4081595]
[1737439980879,0.25355527,101880.0,101870.0,0.4081595]
[1737439981479,0.61435527,101880.0,101870.0,0.4081595]
[1737439981682,0.61435527,101880.0,101870.0,0.31]
[1737439981881,0.039321,101870.0,101850.0,0.23510578]
[1737439982085,0.91385636,101860.0,101850.0,0.23510578]
[1737439982273,0.91385636,101860.0,101850.0,0.64326528]
[1737439983376,0.91385636,101860.0,101850.0,0.54510578]
[1737439983580,0.91385636,101860.0,101850.0,0.47710577]
[1737439984081,0.91385636,101860.0,101850.0,0.16710577]
[1737439984681,0.91385636,101860.0,101850.0,0.47710577]
[1737439985886,0.91385636,101860.0,101850.0,0.50710577]
[1737439986484,0.846425,101860.0,101850.0,0.50710577]
[1737439986782,0.485625,101860.0,101850.0,0.60528455]
[1737439986971,0.124825,101860.0,101850.0,0.60528455]
[1737439987176,0.485625,101860.0,101850.0,0.60528455]
[1737439987579,0.485625,101860.0,101850.0,0.71204491]
[1737439987783,0.485625,101860.0,101850.0,0.64461355]
[1737439988184,0.66162102,101860.0,101850.0,0.47750778]
[1737439988584,0.66162102,101860.0,101850.0,0.40950777]
[1737439989577,0.66162102,101860.0,101850.0,0.16750778]
[1737439990096,0.66162102,101860.0,101850.0,0.41750778]
[1737439990577,0.17599602,101860.0,101850.0,0.48493914]
[1737439990778,0.17599602,101860.0,101850.0,1.01533914]
[1737439991281,0.17599602,101860.0,101850.0,1.0497502]
[1737439991674,0.17599602,101860.0,101850.0,1.05835307]
[1737439991874,0.1466448,101860.0,101850.0,1.01533914]
[1737439992080,0.1466448,101860.0,101850.0,1.04974894]
[1737439992287,0.1466448,101860.0,101850.0,1.01533914]
[1737439992987,0.1466448,101860.0,101850.0,1.0497494]
[1737439993389,0.1466448,101860.0,101850.0,1.09276217]
[1737439993583,0.1466448,101860.0,101850.0,1.01533914]
[1737439995089,0.039321,101870.0,101850.0,1.04974979]
[1737439995290,0.65687616,101880.0,101860.0,0.069325]
[1737439995592,0.6287628,101880.0,101860.0,0.149925]
[1737439995787,0.46755236,101870.0,101860.0,0.03]
[1737439995985,0.46755236,101870.0,101860.0,0.12816432]
[1737439996684,0.46755236,101870.0,101840.0,0.31363437]
[1737439996685,0.039329,101850.0,101840.0,0.31363437]
[1737439996886,0.46756036,101850.0,101840.0,0.32363437]
[1737439997082,0.46756036,101850.0,101840.0,0.42180351]
[1737439997283,0.400129,101850.0,101840.0,0.66180351]
[1737439997588,0.46756036,101850.0,101840.0,0.66180351]
[1737439997888,0.53499172,101850.0,101840.0,0.29229383]
[1737439998181,0.53499172,101850.0,101840.0,0.02489383]
[1737439998378,0.53499172,101850.0,101830.0,0.55814942]
[1737439998578,0.46756336,101840.0,101830.0,0.55814942]
[1737439998985,0.46756336,101840.0,101830.0,0.30814942]
[1737439999381,0.46756336,101840.0,101820.0,0.36717297]
[1737439999382,0.46756336,101840.0,101820.0,0.02136638]
[1737439999582,0.55066736,101830.0,101820.0,0.00011983]
[1737440000383,0.483236,101830.0,101820.0,0.09832271]
[1737440000789,0.122436,101830.0,101820.0,0.13766271]
[1737440000990,0.46756436,101840.0,101820.0,0.13766271]
[1737440001879,0.039333,101840.0,101830.0,0.039336]
[1737440002084,0.039333,101840.0,101820.0,0.09832271]
[1737440002085,0.10676436,101840.0,101820.0,0.09832271]
[1737440002285,0.46756436,101840.0,101820.0,0.03945883]
[1737440002492,0.039336,101830.0,101820.0,0.13766171]
[1737440003289,0.400136,101830.0,101820.0,0.13766171]
[1737440003492,9.026e-05,101830.0,101820.0,0.0696617]
[1737440003792,0.11712087,101830.0,101820.0,0.1090007]
[1737440003991,0.11712087,101830.0,101820.0,0.0696617]
[1737440004189,0.22388823,101830.0,101820.0,0.0696617]
[1737440004493,0.15645687,101830.0,101820.0,0.1090017]